Workbook

Sheet RCA Results Table
B1: ASSET MANAGEMENT DATA QUALITY RESULTS 2019/20 | PERCENTAGE AT THE EXPECTED STANDARD | O1: V0.3: 28-10-2020
A3: RCA Name | B3: Quality Dimension | E3: Importance | H3: Data Category | O3: Score
B4: Accuracy | C4: Completeness | D4: Timeliness | E4: High | F4: Moderate | G4: Low | H4: Network | I4: Asset Inventory | J4: Condition | K4: Maintenance Activity | L4: Demand | M4: Crash | O4: Overall Score
A5: Ashburton District Council | B5: 80 | C5: 71 | D5: 47 | E5: 79 | F5: 53 | G5: 67 | H5: 77 | I5: 54 | J5: 100 | K5: 86 | L5: 67 | M5: 100 | O5: 83
A6: Auckland Transport | B6: 73 | C6: 52 | D6: 77 | E6: 61 | F6: 56 | G6: 92 | H6: 82 | I6: 60 | J6: 75 | K6: 43 | L6: 71 | M6: 100 | O6: 71
A7: Buller District Council | B7: 43 | C7: 45 | D7: 55 | E7: 50 | F7: 47 | G7: 36 | H7: 68 | I7: 32 | J7: 75 | K7: 29 | L7: 57 | M7: 50 | O7: 65
A8: Carterton District Council | B8: 55 | C8: 57 | D8: 62 | E8: 54 | F8: 43 | G8: 83 | H8: 41 | I8: 64 | J8: 67 | K8: 43 | L8: 57 | M8: 100 | O8: 68
A9: Central Hawkes Bay District Council | B9: 61 | C9: 62 | D9: 77 | E9: 70 | F9: 50 | G9: 75 | H9: 77 | I9: 44 | J9: 75 | K9: 86 | L9: 86 | M9: 100 | O9: 75
A10: Central Otago District Council | B10: 48 | C10: 86 | D10: 65 | E10: 60 | F10: 69 | G10: 75 | H10: 50 | I10: 81 | J10: 75 | K10: 57 | L10: 33 | M10: 100 | O10: 76
A11: Chatham Islands Council | B11: 74 | C11: 90 | D11: 62 | E11: 80 | F11: 67 | G11: 83 | H11: 77 | I11: 80 | J11: 33 | K11: 86 | L11: 71 | M11: 100 | O11: 86
A12: Christchurch City Council | B12: 77 | C12: 67 | D12: 55 | E12: 68 | F12: 56 | G12: 83 | H12: 82 | I12: 66 | J12: 75 | K12: 86 | L12: 38 | M12: 50 | O12: 77
A13: Clutha District Council | B13: 70 | C13: 86 | D13: 75 | E13: 81 | F13: 72 | G13: 75 | H13: 68 | I13: 71 | J13: 100 | K13: 71 | L13: 100 | M13: 100 | O13: 87
A14: DOC Roads | B14: 41 | C14: 30 | D14: 30 | E14: 40 | F14: 37 | G14: 18 | H14: 45 | I14: 29 | J14: 50 | K14: 0 | L14: 43 | M14: 100 | O14: 52
A15: Dunedin City Council | B15: 91 | C15: 95 | D15: 69 | E15: 93 | F15: 75 | G15: 92 | H15: 91 | I15: 84 | J15: 100 | K15: 86 | L15: 86 | M15: 100 | O15: 93
A16: Far North District Council | B16: 76 | C16: 81 | D16: 54 | E16: 75 | F16: 60 | G16: 83 | H16: 55 | I16: 68 | J16: 67 | K16: 100 | L16: 86 | M16: 100 | O16: 83
A17: Gisborne District Council | B17: 59 | C17: 62 | D17: 50 | E17: 59 | F17: 56 | G17: 58 | H17: 64 | I17: 46 | J17: 75 | K17: 71 | L17: 57 | M17: 100 | O17: 74
A18: Gore District Council | B18: 75 | C18: 85 | D18: 42 | E18: 67 | F18: 81 | G18: 67 | H18: 65 | I18: 70 | J18: 75 | K18: 71 | L18: 71 | M18: 100 | O18: 81
A19: Grey District Council | B19: 45 | C19: 24 | D19: 62 | E19: 43 | F19: 31 | G19: 50 | H19: 82 | I19: 28 | J19: 50 | K19: 0 | L19: 43 | M19: 100 | O19: 55
A20: Hamilton City Council | B20: 76 | C20: 90 | D20: 74 | E20: 77 | F20: 73 | G20: 100 | H20: 82 | I20: 88 | J20: 67 | K20: 86 | L20: 67 | M20: 50 | O20: 86
A21: Hastings District Council | B21: 73 | C21: 57 | D21: 54 | E21: 57 | F21: 56 | G21: 83 | H21: 64 | I21: 56 | J21: 50 | K21: 71 | L21: 71 | M21: 100 | O21: 75
A22: Hauraki District Council | B22: 84 | C22: 95 | D22: 85 | E22: 88 | F22: 88 | G22: 92 | H22: 86 | I22: 88 | J22: 100 | K22: 86 | L22: 86 | M22: 100 | O22: 93
A23: Horowhenua District Council | B23: 55 | C23: 62 | D23: 59 | E23: 54 | F23: 60 | G23: 67 | H23: 77 | I23: 56 | J23: 67 | K23: 29 | L23: 52 | M23: 100 | O23: 71
A24: Hurunui District Council | B24: 45 | C24: 52 | D24: 54 | E24: 43 | F24: 50 | G24: 67 | H24: 64 | I24: 44 | J24: 100 | K24: 0 | L24: 57 | M24: 100 | O24: 62
A25: Hutt City Council | B25: 45 | C25: 57 | D25: 32 | E25: 61 | F25: 25 | G25: 42 | H25: 64 | I25: 26 | J25: 100 | K25: 57 | L25: 52 | M25: 50 | O25: 66
A26: Invercargill City Council | B26: 80 | C26: 80 | D26: 35 | E26: 68 | F26: 80 | G26: 59 | H26: 77 | I26: 67 | J26: 100 | K26: 57 | L26: 52 | M26: 100 | O26: 82
A27: Kaikoura District Council | B27: 77 | C27: 47 | D27: 50 | E27: 59 | F27: 53 | G27: 73 | H27: 50 | I27: 57 | J27: 75 | K27: 100 | L27: 29 | M27: 100 | O27: 74
A28: Kaipara District Council | B28: 81 | C28: 76 | D28: 77 | E28: 66 | F28: 83 | G28: 100 | H28: 64 | I28: 84 | J28: 67 | K28: 100 | L28: 57 | M28: 100 | O28: 78
A29: Kapiti Coast District Council | B29: 82 | C29: 81 | D29: 73 | E29: 80 | F29: 75 | G29: 83 | H29: 91 | I29: 74 | J29: 100 | K29: 86 | L29: 57 | M29: 100 | O29: 86
A30: Kawerau District Council | B30: 55 | C30: 35 | D30: 17 | E30: 46 | F30: 33 | G30: 27 | H30: 91 | I30: 13 | J30: 75 | K30: 0 | L30: 43 | M30: 100 | O30: 51
A31: MacKenzie District Council | B31: 57 | C31: 60 | D31: 8 | E31: 54 | F31: 43 | G31: 36 | H31: 41 | I31: 26 | J31: 100 | K31: 86 | L31: 43 | M31: 100 | O31: 66
A32: Manawatu District Council | B32: 73 | C32: 86 | D32: 74 | E32: 74 | F32: 78 | G32: 88 | H32: 64 | I32: 88 | J32: 75 | K32: 71 | L32: 67 | M32: 100 | O32: 83
A33: Marlborough District Council | B33: 80 | C33: 81 | D33: 45 | E33: 73 | F33: 81 | G33: 58 | H33: 86 | I33: 58 | J33: 100 | K33: 100 | L33: 48 | M33: 100 | O33: 82
A34: Masterton District Council | B34: 57 | C34: 52 | D34: 73 | E34: 66 | F34: 28 | G34: 83 | H34: 68 | I34: 54 | J34: 75 | K34: 43 | L34: 71 | M34: 50 | O34: 73
A35: Matamata-Piako District Council | B35: 84 | C35: 100 | D35: 81 | E35: 93 | F35: 75 | G35: 100 | H35: 86 | I35: 90 | J35: 100 | K35: 86 | L35: 86 | M35: 100 | O35: 93
A36: Napier City Council | B36: 55 | C36: 71 | D36: 69 | E36: 66 | F36: 56 | G36: 71 | H36: 45 | I36: 60 | J36: 75 | K36: 86 | L36: 71 | M36: 100 | O36: 78
A37: Nelson City Council | B37: 50 | C37: 38 | D37: 71 | E37: 48 | F37: 33 | G37: 75 | H37: 50 | I37: 48 | J37: 33 | K37: 29 | L37: 86 | M37: 50 | O37: 68
A38: New Plymouth District Council | B38: 74 | C38: 57 | D38: 31 | E38: 59 | F38: 53 | G38: 58 | H38: 68 | I38: 40 | J38: 67 | K38: 100 | L38: 43 | M38: 100 | O38: 69
A39: Opotiki District Council | B39: 89 | C39: 85 | D39: 56 | E39: 83 | F39: 80 | G39: 73 | H39: 86 | I39: 70 | J39: 100 | K39: 86 | L39: 81 | M39: 100 | O39: 87
A40: Otorohanga District Council | B40: 80 | C40: 100 | D40: 75 | E40: 87 | F40: 94 | G40: 75 | H40: 85 | I40: 83 | J40: 100 | K40: 71 | L40: 100 | M40: 100 | O40: 92
A41: Palmerston North City Council | B41: 70 | C41: 86 | D41: 69 | E41: 77 | F41: 69 | G41: 83 | H41: 68 | I41: 76 | J41: 75 | K41: 86 | L41: 86 | M41: 50 | O41: 84
A42: Porirua City Council | B42: 48 | C42: 52 | D42: 44 | E42: 49 | F42: 44 | G42: 54 | H42: 50 | I42: 40 | J42: 75 | K42: 43 | L42: 67 | M42: 50 | O42: 64
A43: Queenstown-Lakes District Council | B43: 76 | C43: 95 | D43: 67 | E43: 81 | F43: 73 | G43: 92 | H43: 64 | I43: 92 | J43: 33 | K43: 86 | L43: 86 | M43: 100 | O43: 89
A44: Rangitikei District Council | B44: 77 | C44: 90 | D44: 63 | E44: 85 | F44: 72 | G44: 75 | H44: 82 | I44: 78 | J44: 75 | K44: 86 | L44: 67 | M44: 100 | O44: 89
A45: Rotorua Lakes Council | B45: 64 | C45: 52 | D45: 63 | E45: 52 | F45: 63 | G45: 71 | H45: 73 | I45: 54 | J45: 75 | K45: 43 | L45: 52 | M45: 100 | O45: 73
A46: Ruapehu District Council | B46: 59 | C46: 50 | D46: 31 | E46: 63 | F46: 34 | G46: 38 | H46: 70 | I46: 24 | J46: 100 | K46: 71 | L46: 57 | M46: 50 | O46: 69
A47: Selwyn District Council | B47: 73 | C47: 67 | D47: 54 | E47: 64 | F47: 63 | G47: 75 | H47: 64 | I47: 56 | J47: 75 | K47: 71 | L47: 86 | M47: 100 | O47: 79
A48: South Taranaki District Council | B48: 61 | C48: 81 | D48: 36 | E48: 68 | F48: 69 | G48: 42 | H48: 68 | I48: 48 | J48: 100 | K48: 86 | L48: 52 | M48: 100 | O48: 80
A49: South Waikato District Council | B49: 91 | C49: 100 | D49: 54 | E49: 93 | F49: 88 | G49: 67 | H49: 91 | I49: 76 | J49: 100 | K49: 86 | L49: 100 | M49: 100 | O49: 93
A50: South Wairarapa District Council | B50: 61 | C50: 67 | D50: 38 | E50: 52 | F50: 63 | G50: 67 | H50: 68 | I50: 56 | J50: 100 | K50: 71 | L50: 14 | M50: 50 | O50: 72
A51: Southland District Council | B51: 61 | C51: 90 | D51: 46 | E51: 68 | F51: 78 | G51: 58 | H51: 68 | I51: 72 | J51: 100 | K51: 57 | L51: 57 | M51: 50 | O51: 82
A52: Stratford District Council | B52: 52 | C52: 57 | D52: 23 | E52: 38 | F52: 63 | G52: 50 | H52: 23 | I52: 52 | J52: 75 | K52: 57 | L52: 29 | M52: 100 | O52: 60
A53: Tararua District Council | B53: 86 | C53: 90 | D53: 62 | E53: 86 | F53: 87 | G53: 67 | H53: 91 | I53: 80 | J53: 67 | K53: 100 | L53: 71 | M53: 50 | O53: 92
A54: Tasman District Council | B54: 45 | C54: 52 | D54: 38 | E54: 48 | F54: 47 | G54: 42 | H54: 59 | I54: 20 | J54: 67 | K54: 71 | L54: 71 | M54: 100 | O54: 64
A55: Taupo District Council | B55: 64 | C55: 67 | D55: 58 | E55: 54 | F55: 60 | G55: 92 | H55: 68 | I55: 74 | J55: 33 | K55: 57 | L55: 29 | M55: 100 | O55: 69
A56: Tauranga City Council | B56: 73 | C56: 81 | D56: 81 | E56: 70 | F56: 75 | G56: 100 | H56: 82 | I56: 78 | J56: 75 | K56: 86 | L56: 71 | M56: 50 | O56: 84
A57: Thames-Coromandel District Council | B57: 86 | C57: 62 | D57: 69 | E57: 71 | F57: 63 | G57: 92 | H57: 64 | I57: 76 | J57: 50 | K57: 86 | L57: 71 | M57: 100 | O57: 80
A58: Timaru District Council | B58: 75 | C58: 95 | D58: 50 | E58: 84 | F58: 78 | G58: 58 | H58: 77 | I58: 70 | J58: 75 | K58: 71 | L58: 100 | M58: 100 | O58: 87
A59: Upper Hutt City Council | B59: 45 | C59: 52 | D59: 58 | E59: 41 | F59: 50 | G59: 75 | H59: 64 | I59: 58 | J59: 100 | K59: 0 | L59: 29 | M59: 50 | O59: 59
A60: Waikato District Council | B60: 95 | C60: 95 | D60: 77 | E60: 86 | F60: 94 | G60: 100 | H60: 91 | I60: 92 | J60: 75 | K60: 100 | L60: 86 | M60: 100 | O60: 91
A61: Waimakariri District Council | B61: 55 | C61: 76 | D61: 69 | E61: 68 | F61: 56 | G61: 75 | H61: 55 | I61: 56 | J61: 75 | K61: 71 | L61: 100 | M61: 100 | O61: 78
A62: Waimate District Council | B62: 84 | C62: 85 | D62: 50 | E62: 88 | F62: 73 | G62: 55 | H62: 86 | I62: 74 | J62: 100 | K62: 86 | L62: 57 | M62: 50 | O62: 88
A63: Waipa District Council | B63: 75 | C63: 90 | D63: 81 | E63: 75 | F63: 81 | G63: 100 | H63: 77 | I63: 82 | J63: 100 | K63: 71 | L63: 86 | M63: 100 | O63: 88
A64: Wairoa District Council | B64: 71 | C64: 71 | D64: 50 | E64: 74 | F64: 60 | G64: 58 | H64: 91 | I64: 54 | J64: 67 | K64: 71 | L64: 71 | M64: 50 | O64: 82
A65: Waitaki District Council | B65: 80 | C65: 86 | D65: 50 | E65: 89 | F65: 69 | G65: 50 | H65: 77 | I65: 58 | J65: 100 | K65: 86 | L65: 100 | M65: 100 | O65: 88
A66: Waitomo District Council | B66: 84 | C66: 100 | D66: 77 | E66: 91 | F66: 88 | G66: 83 | H66: 86 | I66: 88 | J66: 100 | K66: 71 | L66: 100 | M66: 100 | O66: 94
A67: Wellington City Council | B67: 64 | C67: 90 | D67: 69 | E67: 79 | F67: 63 | G67: 83 | H67: 73 | I67: 84 | J67: 100 | K67: 29 | L67: 86 | M67: 50 | O67: 87
A68: Western Bay of Plenty District Council | B68: 77 | C68: 95 | D68: 85 | E68: 75 | F68: 94 | G68: 100 | H68: 64 | I68: 92 | J68: 75 | K68: 100 | L68: 86 | M68: 100 | O68: 91
A69: Westland District Council | B69: 60 | C69: 26 | D69: 18 | E69: 37 | F69: 43 | G69: 36 | H69: 85 | I69: 27 | J69: 67 | K69: 0 | L69: 14 | M69: 100 | O69: 49
A70: Whakatane District Council | B70: 73 | C70: 100 | D70: 81 | E70: 80 | F70: 88 | G70: 92 | H70: 73 | I70: 90 | J70: 100 | K70: 57 | L70: 100 | M70: 100 | O70: 91
A71: Whanganui District Council | B71: 64 | C71: 86 | D71: 31 | E71: 71 | F71: 73 | G71: 38 | H71: 59 | I71: 64 | J71: 67 | K71: 100 | L71: 43 | M71: 50 | O71: 78
A72: Whangarei District Council | B72: 64 | C72: 67 | D72: 65 | E72: 66 | F72: 57 | G72: 75 | H72: 59 | I72: 54 | J72: 67 | K72: 100 | L72: 71 | M72: 100 | O72: 77

Sheet Region & Peer Group Results (hidden)
A1: REG DATA QUALITY RESULTS 2019/20 | PERCENTAGE AT THE EXPECTED STANDARD (REGIONS)
B3: Asset Management
B4: Quality Dimension | E4: Importance | H4: Data Category | N4: Score
A5: Region | B5: Accuracy | C5: Completeness | D5: Timeliness | E5: High | F5: Moderate | G5: Low | H5: Network | I5: Asset Inventory | J5: Condition | K5: Maintenance Activity | L5: Demand | M5: Crash | N5: AM Score
A6: Bay of Plenty | B6: 72 | C6: 75 | D6: 64 | E6: 68 | F6: 72 | G6: 78 | H6: 78 | I6: 67 | J6: 83 | K6: 62 | L6: 72 | M6: 92
A7: Canterbury | B7: 69 | C7: 69 | D7: 49 | E7: 67 | F7: 59 | G7: 66 | H7: 66 | I7: 56 | J7: 86 | K7: 73 | L7: 64 | M7: 89
A8: Gisborne and Hawkes Bay | B8: 64 | C8: 65 | D8: 60 | E8: 65 | F8: 56 | G8: 69 | H8: 68 | I8: 52 | J8: 68 | K8: 77 | L8: 71 | M8: 90
A9: No Region | B9: 60 | C9: 63 | D9: 55 | E9: 58 | F9: 62 | G9: 61 | H9: 52 | I9: 59 | J9: 55 | K9: 62 | L9: 65 | M9: 100
A10: North Auckland | B10: 74 | C10: 69 | D10: 68 | E10: 67 | F10: 64 | G10: 88 | H10: 65 | I10: 67 | J10: 69 | K10: 86 | L10: 71 | M10: 100
A11: Southland and Otago | B11: 73 | C11: 88 | D11: 56 | E11: 76 | F11: 75 | G11: 71 | H11: 70 | I11: 74 | J11: 87 | K11: 71 | L11: 73 | M11: 94
A12: Taranaki, Manawatu and Whanganui | B12: 67 | C12: 75 | D12: 48 | E12: 67 | F12: 66 | G12: 60 | H12: 67 | I12: 61 | J12: 78 | K12: 79 | L12: 57 | M12: 80
A13: Top of South Island and West Coast | B13: 54 | C13: 45 | D13: 48 | E13: 50 | F13: 47 | G13: 50 | H13: 72 | I13: 36 | J13: 67 | K13: 38 | L13: 53 | M13: 83
A14: Waikato | B14: 82 | C14: 90 | D14: 73 | E14: 81 | F14: 80 | G14: 90 | H14: 82 | I14: 84 | J14: 84 | K14: 80 | L14: 81 | M14: 95
A15: Wellington | B15: 57 | C15: 64 | D15: 56 | E15: 60 | F15: 49 | G15: 71 | H15: 65 | I15: 57 | J15: 90 | K15: 46 | L15: 54 | M15: 63
A18: REG DATA QUALITY RESULTS 2019/20 | PERCENTAGE AT THE EXPECTED STANDARD (PEER GROUPS)
B20: Asset Management
B21: Quality Dimension | E21: Importance | H21: Data Category | N21: Score
A22: Region | B22: Accuracy | C22: Completeness | D22: Timeliness | E22: High | F22: Moderate | G22: Low | H22: Network | I22: Asset Inventory | J22: Condition | K22: Maintenance Activity | L22: Demand | M22: Crash | N22: AM Score
A23: Provincial Centres | B23: 70 | C23: 72 | D23: 59 | E23: 68 | F23: 65 | G23: 73 | H23: 72 | I23: 63 | J23: 76 | K23: 70 | L23: 67 | M23: 94
A24: Highly Urban | B24: 62 | C24: 71 | D24: 55 | E24: 67 | F24: 54 | G24: 71 | H24: 78 | I24: 59 | J24: 84 | K24: 51 | L24: 64 | M24: 60
A25: Rural Districts | B25: 70 | C25: 78 | D25: 55 | E25: 71 | F25: 68 | G25: 69 | H25: 69 | I25: 65 | J25: 85 | K25: 75 | L25: 67 | M25: 88
A26: Cities | B26: 64 | C26: 64 | D26: 61 | E26: 62 | F26: 58 | G26: 75 | H26: 68 | I26: 61 | J26: 80 | K26: 57 | L26: 62 | M26: 72
A27: No Group | B27: 53 | C27: 49 | D27: 51 | E27: 47 | F27: 60 | G27: 50 | H27: 39 | I27: 48 | J27: 63 | K27: 50 | L27: 62 | M27: 100
A30: REG DATA QUALITY RESULTS 2019/20 | PERCENTAGE AT THE EXPECTED STANDARD (NATIONAL)
B32: Asset Management
B33: Quality Dimension | E33: Importance | H33: Data Category | N33: Score
A34: Region | B34: Accuracy | C34: Completeness | D34: Timeliness | E34: High | F34: Moderate | G34: Low | H34: Network | I34: Asset Inventory | J34: Condition | K34: Maintenance Activity | L34: Demand | M34: Crash | N34: AM Score
A35: National | B35: 68 | C35: 72 | D35: 57 | E35: 68 | F35: 64 | G35: 71 | H35: 70 | I35: 63 | J35: 80 | K35: 68 | L35: 66 | M35: 87

Sheet Lookups (hidden)
H1: RCA_ID | I1: RCA_Name | J1: old_RCA_Name | K1: Peer Group | L1: Region
A2: Financial Years | H2: 57 | I2: Ashburton District Council | J2: Ashburton District | K2: Rural Districts | L2: Canterbury
A3: 2019/20 | H3: 80 | I3: Auckland Transport | J3: Auckland | K3: Cities | L3: North Auckland
A4: 2018/19 | H4: 58 | I4: Buller District Council | J4: Buller District | K4: Provincial Centres | L4: Top of South Island and West Coast
A5: 2017/18 | H5: 23 | I5: Carterton District Council | J5: Carterton District | K5: Rural Districts | L5: Wellington
A6: 2016/17 | H6: 38 | I6: Central Hawkes Bay District Council | J6: Central Hawkes Bay District | K6: Rural Districts | L6: Gisborne and Hawkes Bay
A7: 2015/16 | H7: 59 | I7: Central Otago District Council | J7: Central Otago District | K7: Rural Districts | L7: Southland and Otago
A8: 2014/15 | H8: 86 | I8: Chatham Islands Council | J8: Chatham Island | K8: Rural Districts | L8: No Region
H9: 76 | I9: Christchurch City Council | J9: Christchurch City | K9: Cities | L9: Canterbury
A10: Comparison | H10: 60 | I10: Clutha District Council | J10: Clutha District | K10: Rural Districts | L10: Southland and Otago
A11: National | H11: 88 | I11: DOC Roads | J11: DOC Roads | K11: No Group | L11: No Region
A12: Regional | H12: 61 | I12: Dunedin City Council | J12: Dunedin City | K12: Provincial Centres | L12: Southland and Otago
A13: Peer Group | H13: 79 | I13: Far North District Council | J13: Far North District | K13: Rural Districts | L13: North Auckland
H14: 39 | I14: Gisborne District Council | J14: Gisborne District | K14: Provincial Centres | L14: Gisborne and Hawkes Bay
A15: Shade | B15: Threshold (>) | H15: 62 | I15: Gore District Council | J15: Gore District | K15: Rural Districts | L15: Southland and Otago
B16: 80 | H16: 63 | I16: Grey District Council | J16: Grey District | K16: Provincial Centres | L16: Top of South Island and West Coast
B17: 70 | H17: 11 | I17: Hamilton City Council | J17: Hamilton City | K17: Highly Urban | L17: Waikato
B18: 50 | H18: 40 | I18: Hastings District Council | J18: Hastings District | K18: Provincial Centres | L18: Gisborne and Hawkes Bay
H19: 9 | I19: Hauraki District Council | J19: Hauraki District | K19: Provincial Centres | L19: Waikato
H20: 41 | I20: Horowhenua District Council | J20: Horowhenua District | K20: Provincial Centres | L20: Taranaki, Manawatu and Whanganui
H21: 64 | I21: Hurunui District Council | J21: Hurunui District | K21: Rural Districts | L21: Canterbury
H22: 24 | I22: Hutt City Council | J22: Hutt City | K22: Highly Urban | L22: Wellington
H23: 65 | I23: Invercargill City Council | J23: Invercargill City | K23: Cities | L23: Southland and Otago
H24: 66 | I24: Kaikoura District Council | J24: Kaikoura District | K24: Provincial Centres | L24: Canterbury
H25: 78 | I25: Kaipara District Council | J25: Kaipara District | K25: Rural Districts | L25: North Auckland
H26: 25 | I26: Kapiti Coast District Council | J26: Kapiti Coast District | K26: Cities | L26: Wellington
H27: 21 | I27: Kawerau District Council | J27: Kawerau District | K27: Highly Urban | L27: Bay of Plenty
H28: 67 | I28: MacKenzie District Council | J28: MacKenzie District | K28: Rural Districts | L28: Canterbury
H29: 42 | I29: Manawatu District Council | J29: Manawatu District | K29: Rural Districts | L29: Taranaki, Manawatu and Whanganui
H30: 26 | I30: Marlborough District Council | J30: Marlborough District | K30: Provincial Centres | L30: Top of South Island and West Coast
H31: 87 | I31: Masterton District Council | J31: Masterton District | K31: Provincial Centres | L31: Wellington
H32: 8 | I32: Matamata-Piako District Council | J32: Matamata-Piako District | K32: Provincial Centres | L32: Waikato
H33: 43 | I33: Napier City Council | J33: Napier City | K33: Cities | L33: Gisborne and Hawkes Bay
H34: 30 | I34: Nelson City Council | J34: Nelson City | K34: Cities | L34: Top of South Island and West Coast
H35: 44 | I35: New Plymouth District Council | J35: New Plymouth District | K35: Provincial Centres | L35: Taranaki, Manawatu and Whanganui
H36: 12 | I36: Opotiki District Council | J36: Opotiki District | K36: Provincial Centres | L36: Bay of Plenty
H37: 17 | I37: Otorohanga District Council | J37: Otorohanga District | K37: Rural Districts | L37: Waikato
H38: 45 | I38: Palmerston North City Council | J38: Palmerston North City | K38: Cities | L38: Taranaki, Manawatu and Whanganui
H39: 31 | I39: Porirua City Council | J39: Porirua City | K39: Cities | L39: Wellington
H40: 68 | I40: Queenstown-Lakes District Council | J40: Queenstown-Lakes District | K40: Provincial Centres | L40: Southland and Otago
H41: 46 | I41: Rangitikei District Council | J41: Rangitikei District | K41: Rural Districts | L41: Taranaki, Manawatu and Whanganui
H42: 20 | I42: Rotorua Lakes Council | J42: Rotorua Lakes | K42: Provincial Centres | L42: Bay of Plenty
H43: 47 | I43: Ruapehu District Council | J43: Ruapehu District | K43: Rural Districts | L43: Taranaki, Manawatu and Whanganui
H44: 75 | I44: Selwyn District Council | J44: Selwyn District | K44: Rural Districts | L44: Canterbury
H45: 48 | I45: South Taranaki District Council | J45: South Taranaki District | K45: Rural Districts | L45: Taranaki, Manawatu and Whanganui
H46: 10 | I46: South Waikato District Council | J46: South Waikato District | K46: Provincial Centres | L46: Waikato
H47: 32 | I47: South Wairarapa District Council | J47: South Wairarapa District | K47: Rural Districts | L47: Wellington
H48: 69 | I48: Southland District Council | J48: Southland District | K48: Rural Districts | L48: Southland and Otago
H49: 49 | I49: Stratford District Council | J49: Stratford District | K49: Rural Districts | L49: Taranaki, Manawatu and Whanganui
H50: 54 | I50: Tararua District Council | J50: Tararua District | K50: Rural Districts | L50: Taranaki, Manawatu and Whanganui
H51: 33 | I51: Tasman District Council | J51: Tasman District | K51: Provincial Centres | L51: Top of South Island and West Coast
H52: 7 | I52: Taupo District Council | J52: Taupo District | K52: Provincial Centres | L52: Waikato
H53: 15 | I53: Tauranga City Council | J53: Tauranga City | K53: Highly Urban | L53: Bay of Plenty
H54: 18 | I54: Thames-Coromandel District Council | J54: Thames-Coromandel District | K54: Provincial Centres | L54: Waikato
H55: 70 | I55: Timaru District Council | J55: Timaru District | K55: Provincial Centres | L55: Canterbury
H56: 34 | I56: Upper Hutt City Council | J56: Upper Hutt City | K56: Cities | L56: Wellington
H57: 22 | I57: Waikato District Council | J57: Waikato District | K57: Rural Districts | L57: Waikato
H58: 74 | I58: Waimakariri District Council | J58: Waimakariri District | K58: Provincial Centres | L58: Canterbury
H59: 71 | I59: Waimate District Council | J59: Waimate District | K59: Rural Districts | L59: Canterbury
H60: 5 | I60: Waipa District Council | J60: Waipa District | K60: Provincial Centres | L60: Waikato
H61: 55 | I61: Wairoa District Council | J61: Wairoa District | K61: Rural Districts | L61: Gisborne and Hawkes Bay
H62: 72 | I62: Waitaki District Council | J62: Waitaki District | K62: Rural Districts | L62: Southland and Otago
H63: 14 | I63: Waitomo District Council | J63: Waitomo District | K63: Rural Districts | L63: Waikato
H64: 37 | I64: Wellington City Council | J64: Wellington City | K64: Highly Urban | L64: Wellington
H65: 13 | I65: Western Bay of Plenty District Council | J65: Western Bay of Plenty District | K65: Provincial Centres | L65: Bay of Plenty
H66: 73 | I66: Westland District Council | J66: Westland District | K66: Provincial Centres | L66: Top of South Island and West Coast
H67: 16 | I67: Whakatane District Council | J67: Whakatane District | K67: Provincial Centres | L67: Bay of Plenty
H68: 56 | I68: Whanganui District Council | J68: Whanganui District | K68: Provincial Centres | L68: Taranaki, Manawatu and Whanganui
H69: 77 | I69: Whangarei District Council | J69: Whangarei District | K69: Provincial Centres | L69: North Auckland
H70: 81 | I70: NZTA | K70: No Group | L70: No Region

Sheet Charts
A1: ASSET MANAGEMENT DATA QUALITY RESULTS 2019/20
A2: PERCENTAGE AT THE EXPECTED STANDARD
A4: My RCA: | B4: Rotorua Lakes Council | C4: Select RCA from drop down list
A5: Comparison | B5: National
A6: =B5&":" -> National: | B6: =IF($B$5=Lookups!$A$11,'Chart Data'!$D$3,IF(Charts!$B$5=Lookups!$A$12,'Chart Data'!$E$3,IF(Charts!$B$5=Lookups!$A$13,'Chart Data'!$F$3,""))) -> National
I40: V0.3: 28-10-2020

Sheet Chart Data (hidden)
B1: Financial Year | C1: 2018/19
B2: Reported Grade | C2: 1 | R2: RCA | T2: Comparison | V2: 10%ile | X2: 25%ile | Z2: 50%ile | AB2: 75%ile | AD2: 90%ile
B3: Individual RCA | C3: =Charts!$B$4 -> Rotorua Lakes Council | D3: National | E3: =VLOOKUP($C$3,Table22[[#All],[RCA_Name]:[Region]],4,FALSE) -> Bay of Plenty | F3: =VLOOKUP($C$3,Table22[[#All],[RCA_Name]:[Region]],3,FALSE) -> Provincial Centres | G3: 10 | H3: 25 | I3: 50 | J3: 75 | K3: 90 | L3: Sector Weight | M3: % of 360 | N3: Start Angle | O3: Finish Angle | P3: Chart Label | Q3: Theta | S3: Values | W3: Values | Y3: Values | AA3: Values | AC3: Values | AE3: Values | AI3: 0 | AJ3: 0.1 | AK3: 0.2 | AL3: 0.3 | AM3: 0.4 | AN3: 0.5 | AO3: 0.6 | AP3: 0.7 | AQ3: 0.8 | AR3: 0.9 | AS3: 1
A4: Asset Management | B4: High | C4: =VLOOKUP($C$3,'RCA Results Table'!$A:$O,MATCH('Chart Data'!B4,'RCA Results Table'!$A$4:$O$4,0),FALSE)/100 -> 0.52 | D4: =VLOOKUP($D$3,'Region & Peer Group Results'!$A:$N,MATCH('Chart Data'!$B4,'Region & Peer Group Results'!$A$5:$N$5,0),FALSE)/100 -> 0.68 | E4: =VLOOKUP($E$3,'Region & Peer Group Results'!$A:$N,MATCH('Chart Data'!$B4,'Region & Peer Group Results'!$A$5:$N$5,0),FALSE)/100 -> 0.68 | F4: =VLOOKUP($F$3,'Region & Peer Group Results'!$A:$N,MATCH('Chart Data'!$B4,'Region & Peer Group Results'!$A$5:$N$5,0),FALSE)/100 -> 0.68 | G4: 0.5133333333 | H4: 0.6 | I4: 0.6666666667 | J4: 0.7333333333 | K4: 0.8666666667 | L4: 1 | M4: =L4/SUM($L$4:$L$15) -> 0.08333333333 | N4: 0 | O4: =360*SUM($M$3:M4) -> 30 | P4: Accuracy | Q4: =(O4-N4)/2+N4 -> 15 | R4: =C4*SIN(Q4/180*PI()) -> 0.1345859035 | S4: =C4*COS(Q4/180*PI()) -> 0.5022814297 | T4: =IF(Charts!$B$6='Chart Data'!$D$3,D4*SIN(Q4/180*PI()),IF(Charts!$B$6='Chart Data'!$E$3,E4*SIN(Q4/180*PI()),IF(Charts!$B$6='Chart Data'!$F$3,F4*SIN(Q4/180*PI()),""))) -> 0.1759969507 | U4: =IF(Charts!$B$6='Chart Data'!$D$3,D4*COS(Q4/180*PI()),IF(Charts!$B$6='Chart Data'!$E$3,E4*COS(Q4/180*PI()),IF(Charts!$B$6='Chart Data'!$F$3,F4*COS(Q4/180*PI()),""))) -> 0.6568295619 | V4: =$G4*SIN($Q4/180*PI()) -> 0.1328604432 | W4: =$G4*COS($Q4/180*PI()) -> 0.4958419242 | X4: =$H4*SIN($Q4/180*PI()) -> 0.1552914271 | Y4: =$H4*COS($Q4/180*PI()) -> 0.5795554958 | Z4: =$I4*SIN($Q4/180*PI()) -> 0.1725460301 | AA4: =$I4*COS($Q4/180*PI()) -> 0.6439505509 | AB4: =$J4*SIN($Q4/180*PI()) -> 0.1898006331 | AC4: =$J4*COS($Q4/180*PI()) -> 0.7083456059 | AD4: =$K4*SIN($Q4/180*PI()) -> 0.2243098391 | AE4: =$K4*COS($Q4/180*PI()) -> 0.8371357161 | AH4: 32.72727273 | AI4: =$L4 -> 1 | AJ4: =$L4 -> 1 | AK4: 1 | AL4: 1 | AM4: 1 | AN4: 1 | AO4: 1 | AP4: 1 | AQ4: 1 | AR4: 1 | AS4: 1
A5: Asset Management | B5: Moderate | C5: =VLOOKUP($C$3,'RCA Results Table'!$A:$O,MATCH('Chart Data'!B5,'RCA Results Table'!$A$4:$O$4,0),FALSE)/100 -> 0.63 | D5: =VLOOKUP($D$3,'Region & Peer Group Results'!$A:$N,MATCH('Chart Data'!$B5,'Region & Peer Group Results'!$A$5:$N$5,0),FALSE)/100 -> 0.64 | E5: =VLOOKUP($E$3,'Region & Peer Group Results'!$A:$N,MATCH('Chart Data'!$B5,'Region & Peer Group Results'!$A$5:$N$5,0),FALSE)/100 -> 0.72 | F5: =VLOOKUP($F$3,'Region & Peer Group Results'!$A:$N,MATCH('Chart Data'!$B5,'Region & Peer Group Results'!$A$5:$N$5,0),FALSE)/100 -> 0.65 | G5: 0.4 | H5: 0.5 | I5: 0.6 | J5: 0.7 | K5: 0.8 | L5: 1 | M5: 0.08333333333 | N5: =O4 -> 30 | O5: =360*SUM($M$3:M5) -> 60 | P5: Completeness | Q5: =(O5-N5)/2+N5 -> 45 | R5: 0.4454772721 | S5: 0.4454772721 | T5: =IF(Charts!$B$6='Chart Data'!$D$3,D5*SIN(Q5/180*PI()),IF(Charts!$B$6='Chart Data'!$E$3,E5*SIN(Q5/180*PI()),IF(Charts!$B$6='Chart Data'!$F$3,F5*SIN(Q5/180*PI()),""))) -> 0.45254834 | U5: =IF(Charts!$B$6='Chart Data'!$D$3,D5*COS(Q5/180*PI()),IF(Charts!$B$6='Chart Data'!$E$3,E5*COS(Q5/180*PI()),IF(Charts!$B$6='Chart Data'!$F$3,F5*COS(Q5/180*PI()),""))) -> 0.45254834 | V5: =$G5*SIN($Q5/180*PI()) -> 0.2828427125 | W5: =$G5*COS($Q5/180*PI()) -> 0.2828427125 | X5: =$H5*SIN($Q5/180*PI()) -> 0.3535533906 | Y5: =$H5*COS($Q5/180*PI()) -> 0.3535533906 | Z5: =$I5*SIN($Q5/180*PI()) -> 0.4242640687 | AA5: =$I5*COS($Q5/180*PI()) -> 0.4242640687 | AB5: =$J5*SIN($Q5/180*PI()) -> 0.4949747468 | AC5: =$J5*COS($Q5/180*PI()) -> 0.4949747468 | AD5: =$K5*SIN($Q5/180*PI()) -> 0.5656854249 | AE5: =$K5*COS($Q5/180*PI()) -> 0.5656854249 | AH5: 65.45454545 | AI5: =$L5 -> 1 | AJ5: 1 | AK5: 1 | AL5: 1 | AM5: 1 | AN5: 1 | AO5: 1 | AP5: 1 | AQ5: 1 | AR5: 1 | AS5: 1
A6: Asset Management | B6: Low | C6: =VLOOKUP($C$3,'RCA Results Table'!$A:$O,MATCH('Chart Data'!B6,'RCA Results Table'!$A$4:$O$4,0),FALSE)/100 -> 0.71 | D6: =VLOOKUP($D$3,'Region & Peer Group Results'!$A:$N,MATCH('Chart Data'!$B6,'Region & Peer Group Results'!$A$5:$N$5,0),FALSE)/100 -> 0.71 | E6: =VLOOKUP($E$3,'Region & Peer Group Results'!$A:$N,MATCH('Chart Data'!$B6,'Region & Peer Group Results'!$A$5:$N$5,0),FALSE)/100 -> 0.78 | F6: =VLOOKUP($F$3,'Region & Peer Group Results'!$A:$N,MATCH('Chart Data'!$B6,'Region & Peer Group Results'!$A$5:$N$5,0),FALSE)/100 -> 0.73 | G6: 0.1666666667 | H6: 0.1666666667 | I6: 0.3333333333 | J6: 0.5 | K6: 0.6666666667 | L6: 1 | M6: 0.08333333333 | N6: =O5 -> 60 | O6: =360*SUM($M$3:M6) -> 90 | P6: Timeliness | Q6: 75 | R6: 0.6858073367 | S6: 0.183761522 | T6: =IF(Charts!$B$6='Chart Data'!$D$3,D6*SIN(Q6/180*PI()),IF(Charts!$B$6='Chart Data'!$E$3,E6*SIN(Q6/180*PI()),IF(Charts!$B$6='Chart Data'!$F$3,F6*SIN(Q6/180*PI()),""))) -> 0.6858073367 | U6: =IF(Charts!$B$6='Chart Data'!$D$3,D6*COS(Q6/180*PI()),IF(Charts!$B$6='Chart Data'!$E$3,E6*COS(Q6/180*PI()),IF(Charts!$B$6='Chart Data'!$F$3,F6*COS(Q6/180*PI()),""))) -> 0.183761522 | V6: 0.1609876377 | W6: 0.04313650752 | X6: 0.1609876377 | Y6: 0.04313650752 | Z6: 0.3219752754 | AA6: 0.08627301503 | AB6: 0.4829629131 | AC6: 0.1294095226 | AD6: 0.6439505509 | AE6: 0.1725460301 | AH6: 98.18181818 | AI6: 1 | AJ6: 1 | AK6: 1 | AL6: 1 | AM6: 1 | AN6: 1 | AO6: 1 | AP6: 1 | AQ6: 1 | AR6: 1 | AS6: 1
A7: Asset Management | B7: Crash | C7: =VLOOKUP($C$3,'RCA Results Table'!$A:$O,MATCH('Chart Data'!B7,'RCA Results Table'!$A$4:$O$4,0),FALSE)/100 -> 1 | D7: =VLOOKUP($D$3,'Region & Peer Group Results'!$A:$N,MATCH('Chart Data'!$B7,'Region & Peer Group Results'!$A$5:$N$5,0),FALSE)/100 -> 0.87 | E7: =VLOOKUP($E$3,'Region & Peer Group Results'!$A:$N,MATCH('Chart Data'!$B7,'Region & Peer Group Results'!$A$5:$N$5,0),FALSE)/100 -> 0.92 | F7: =VLOOKUP($F$3,'Region & Peer Group Results'!$A:$N,MATCH('Chart Data'!$B7,'Region & Peer Group Results'!$A$5:$N$5,0),FALSE)/100 -> 0.94 | G7: 0.4545454545 | H7: 0.5454545455 | I7: 0.6363636364 | J7: 0.8181818182 | K7: 0.8181818182 | L7: 1 | M7: 0.08333333333 | N7: 90 | O7: =360*SUM($M$3:M7) -> 120 | P7: Network | Q7: 105 | R7: 0.9659258263 | S7: -0.2588190451 | T7: =IF(Charts!$B$6='Chart Data'!$D$3,D7*SIN(Q7/180*PI()),IF(Charts!$B$6='Chart Data'!$E$3,E7*SIN(Q7/180*PI()),IF(Charts!$B$6='Chart Data'!$F$3,F7*SIN(Q7/180*PI()),""))) -> 0.8403554689 | U7: =IF(Charts!$B$6='Chart Data'!$D$3,D7*COS(Q7/180*PI()),IF(Charts!$B$6='Chart Data'!$E$3,E7*COS(Q7/180*PI()),IF(Charts!$B$6='Chart Data'!$F$3,F7*COS(Q7/180*PI()),""))) -> -0.2251725692 | V7: 0.4390571938 | W7: -0.1176450205 | X7: 0.5268686325 | Y7: -0.1411740246 | Z7: 0.6146800713 | AA7: -0.1647030287 | AB7: 0.7903029488 | AC7: -0.2117610369 | AD7: 0.7903029488 | AE7: -0.2117610369 | AH7: 114.5454545 | AI7: 1 | AJ7: 1 | AK7: 1 | AL7: 1 | AM7: 1 | AN7: 1 | AO7: 1 | AP7: 1 | AQ7: 1 | AR7: 1 | AS7: 1
A8: Asset Management | B8: Demand | C8: =VLOOKUP($C$3,'RCA Results Table'!$A:$O,MATCH('Chart Data'!B8,'RCA Results Table'!$A$4:$O$4,0),FALSE)/100 -> 0.52 | D8: =VLOOKUP($D$3,'Region & Peer Group Results'!$A:$N,MATCH('Chart Data'!$B8,'Region & Peer Group Results'!$A$5:$N$5,0),FALSE)/100 -> 0.66 | E8: =VLOOKUP($E$3,'Region & Peer Group Results'!$A:$N,MATCH('Chart Data'!$B8,'Region & Peer Group Results'!$A$5:$N$5,0),FALSE)/100 -> 0.72 | F8: =VLOOKUP($F$3,'Region & Peer Group Results'!$A:$N,MATCH('Chart Data'!$B8,'Region & Peer Group Results'!$A$5:$N$5,0),FALSE)/100 -> 0.67 | G8: 0 | H8: 0.25 | I8: 0.25 | J8: 0.5 | K8: 0.75 | L8: 1 | M8: 0.08333333333 | N8: 120 | O8: =360*SUM($M$3:M8) -> 150 | P8: Asset Inventory | Q8: 135 | R8: 0.3676955262 | S8: -0.3676955262 | T8: =IF(Charts!$B$6='Chart Data'!$D$3,D8*SIN(Q8/180*PI()),IF(Charts!$B$6='Chart Data'!$E$3,E8*SIN(Q8/180*PI()),IF(Charts!$B$6='Chart Data'!$F$3,F8*SIN(Q8/180*PI()),""))) -> 0.4666904756 | U8: =IF(Charts!$B$6='Chart Data'!$D$3,D8*COS(Q8/180*PI()),IF(Charts!$B$6='Chart Data'!$E$3,E8*COS(Q8/180*PI()),IF(Charts!$B$6='Chart Data'!$F$3,F8*COS(Q8/180*PI()),""))) -> -0.4666904756 | V8: 0 | W8: 0 | X8: 0.1767766953 | Y8: -0.1767766953 | Z8: 0.1767766953 | AA8: -0.1767766953 | AB8: 0.3535533906 | AC8: -0.3535533906 | AD8: 0.5303300859 | AE8: -0.5303300859 | AH8: 130.9090909 | AI8: 1 | AJ8: 1 | AK8: 1 | AL8: 1 | AM8: 1 | AN8: 1 | AO8: 1 | AP8: 1 | AQ8: 1 | AR8: 1 | AS8: 1
A9: Asset Management | B9: Condition | C9: =VLOOKUP($C$3,'RCA Results Table'!$A:$O,MATCH('Chart Data'!B9,'RCA Results Table'!$A$4:$O$4,0),FALSE)/100 -> 0.75 | D9: =VLOOKUP($D$3,'Region & Peer Group Results'!$A:$N,MATCH('Chart Data'!$B9,'Region & Peer Group Results'!$A$5:$N$5,0),FALSE)/100 -> 0.8 | E9: =VLOOKUP($E$3,'Region & Peer Group Results'!$A:$N,MATCH('Chart Data'!$B9,'Region & Peer Group Results'!$A$5:$N$5,0),FALSE)/100 -> 0.83 | F9: =VLOOKUP($F$3,'Region & Peer Group Results'!$A:$N,MATCH('Chart Data'!$B9,'Region & Peer Group Results'!$A$5:$N$5,0),FALSE)/100 -> 0.76 | G9: 0 | H9: 0.5833333333 | I9: 0.6666666667 | J9: 1 | K9: 1 | L9: 1 | M9: 0.08333333333 | N9: 150 | O9: =360*SUM($M$3:M9) -> 180 | P9: Maintenance Activtity | Q9: 165 | R9: 0.1941142838 | S9: -0.7244443697 | T9: =IF(Charts!$B$6='Chart Data'!$D$3,D9*SIN(Q9/180*PI()),IF(Charts!$B$6='Chart Data'!$E$3,E9*SIN(Q9/180*PI()),IF(Charts!$B$6='Chart Data'!$F$3,F9*SIN(Q9/180*PI()),""))) -> 0.2070552361 | U9: =IF(Charts!$B$6='Chart Data'!$D$3,D9*COS(Q9/180*PI()),IF(Charts!$B$6='Chart Data'!$E$3,E9*COS(Q9/180*PI()),IF(Charts!$B$6='Chart Data'!$F$3,F9*COS(Q9/180*PI()),""))) -> -0.772740661 | V9: 0 | W9: 0 | X9: 0.1509777763 | Y9: -0.563456732 | Z9: 0.1725460301 | AA9: -0.6439505509 | AB9: 0.2588190451 | AC9: -0.9659258263 | AD9: 0.2588190451 | AE9: -0.9659258263 | AH9: 147.2727273 | AI9: 1 | AJ9: 1 | AK9: 1 | AL9: 1 | AM9: 1 | AN9: 1 | AO9: 1 | AP9: 1 | AQ9: 1 | AR9: 1 | AS9: 1
A10: Asset Management | B10: Maintenance Activity | C10: =VLOOKUP($C$3,'RCA Results Table'!$A:$O,MATCH('Chart Data'!B10,'RCA Results Table'!$A$4:$O$4,0),FALSE)/100 -> 0.43 | D10: =VLOOKUP($D$3,'Region & Peer Group Results'!$A:$N,MATCH('Chart Data'!$B10,'Region & Peer Group Results'!$A$5:$N$5,0),FALSE)/100 -> 0.68 | E10: =VLOOKUP($E$3,'Region & Peer Group Results'!$A:$N,MATCH('Chart Data'!$B10,'Region & Peer Group Results'!$A$5:$N$5,0),FALSE)/100 -> 0.62 | F10: =VLOOKUP($F$3,'Region & Peer Group Results'!$A:$N,MATCH('Chart Data'!$B10,'Region & Peer Group Results'!$A$5:$N$5,0),FALSE)/100 -> 0.7 | G10: 0.5 | H10: 1 | I10: 1 | J10: 1 | K10: 1 | L10: 1 | M10: 0.08333333333 | N10: 180 | O10: =360*SUM($M$3:M10) -> 210 | P10: Condition | Q10: 195 | R10: -0.1112921894 | S10: -0.4153481053 | T10: =IF(Charts!$B$6='Chart Data'!$D$3,D10*SIN(Q10/180*PI()),IF(Charts!$B$6='Chart Data'!$E$3,E10*SIN(Q10/180*PI()),IF(Charts!$B$6='Chart Data'!$F$3,F10*SIN(Q10/180*PI()),""))) -> -0.1759969507 | U10: =IF(Charts!$B$6='Chart Data'!$D$3,D10*COS(Q10/180*PI()),IF(Charts!$B$6='Chart Data'!$E$3,E10*COS(Q10/180*PI()),IF(Charts!$B$6='Chart Data'!$F$3,F10*COS(Q10/180*PI()),""))) -> -0.6568295619 | V10: -0.1294095226 | W10: -0.4829629131 | X10: -0.2588190451 | Y10: -0.9659258263 | Z10: -0.2588190451 | AA10: -0.9659258263 | AB10: -0.2588190451 | AC10: -0.9659258263 | AD10: -0.2588190451 | AE10: -0.9659258263 | AH10: 163.6363636 | AI10: 1 | AJ10: 1 | AK10: 1 | AL10: 1 | AM10: 1 | AN10: 1 | AO10: 1 | AP10: 1 | AQ10: 1 | AR10: 1 | AS10: 1
A11: Asset Management | B11: Asset Inventory | C11: =VLOOKUP($C$3,'RCA Results Table'!$A:$O,MATCH('Chart Data'!B11,'RCA Results Table'!$A$4:$O$4,0),FALSE)/100 -> 0.54 | D11: =VLOOKUP($D$3,'Region & Peer Group Results'!$A:$N,MATCH('Chart Data'!$B11,'Region & Peer Group Results'!$A$5:$N$5,0),FALSE)/100 -> 0.63 | E11: =VLOOKUP($E$3,'Region & Peer Group Results'!$A:$N,MATCH('Chart Data'!$B11,'Region & Peer Group Results'!$A$5:$N$5,0),FALSE)/100 -> 0.67 | F11: =VLOOKUP($F$3,'Region & Peer Group Results'!$A:$N,MATCH('Chart Data'!$B11,'Region & Peer Group Results'!$A$5:$N$5,0),FALSE)/100 -> 0.63 | G11: 0.3333333333 | H11: 0.4166666667 | I11: 0.5555555556 | J11: 0.7777777778 | K11: 0.7777777778 | L11: 1 | M11: 0.08333333333 | N11: 210 | O11: =360*SUM($M$3:M11) -> 240 | P11: Demand | Q11: 225 | R11: -0.3818376618 | S11: -0.3818376618 | T11: =IF(Charts!$B$6='Chart Data'!$D$3,D11*SIN(Q11/180*PI()),IF(Charts!$B$6='Chart Data'!$E$3,E11*SIN(Q11/180*PI()),IF(Charts!$B$6='Chart Data'!$F$3,F11*SIN(Q11/180*PI()),""))) -> -0.4454772721 | U11: =IF(Charts!$B$6='Chart Data'!$D$3,D11*COS(Q11/180*PI()),IF(Charts!$B$6='Chart Data'!$E$3,E11*COS(Q11/180*PI()),IF(Charts!$B$6='Chart Data'!$F$3,F11*COS(Q11/180*PI()),""))) -> -0.4454772721 | V11: -0.2357022604 | W11: -0.2357022604 | X11: -0.2946278255 | Y11: -0.2946278255 | Z11: -0.3928371007 | AA11: -0.3928371007 | AB11: -0.5499719409 | AC11: -0.5499719409 | AD11: -0.5499719409 | AE11: -0.5499719409 | AH11: 180 | AI11: 1 | AJ11: 1 | AK11: 1 | AL11: 1 | AM11: 1 | AN11: 1 | AO11: 1 | AP11: 1 | AQ11: 1 | AR11: 1 | AS11: 1
A12: Asset Management | B12: Network | C12: =VLOOKUP($C$3,'RCA Results Table'!$A:$O,MATCH('Chart Data'!B12,'RCA Results Table'!$A$4:$O$4,0),FALSE)/100 -> 0.73 | D12: =VLOOKUP($D$3,'Region & Peer Group Results'!$A:$N,MATCH('Chart Data'!$B12,'Region & Peer Group Results'!$A$5:$N$5,0),FALSE)/100 -> 0.7 | E12: =VLOOKUP($E$3,'Region & Peer Group Results'!$A:$N,MATCH('Chart Data'!$B12,'Region & Peer Group Results'!$A$5:$N$5,0),FALSE)/100 -> 0.78 | F12: =VLOOKUP($F$3,'Region & Peer Group Results'!$A:$N,MATCH('Chart Data'!$B12,'Region & Peer Group Results'!$A$5:$N$5,0),FALSE)/100 -> 0.72 | G12: 0 | H12: 0.375 | I12: 0.5 | J12: 0.5 | K12: 0.5 | L12: 1 | M12: 0.08333333333 | N12: 240 | O12: =360*SUM($M$3:M12) -> 270 | P12: Crash | Q12: 255 | R12: -0.7051258532 | S12: -0.1889379029 | T12: =IF(Charts!$B$6='Chart Data'!$D$3,D12*SIN(Q12/180*PI()),IF(Charts!$B$6='Chart Data'!$E$3,E12*SIN(Q12/180*PI()),IF(Charts!$B$6='Chart Data'!$F$3,F12*SIN(Q12/180*PI()),""))) -> -0.6761480784 | U12: =IF(Charts!$B$6='Chart Data'!$D$3,D12*COS(Q12/180*PI()),IF(Charts!$B$6='Chart Data'!$E$3,E12*COS(Q12/180*PI()),IF(Charts!$B$6='Chart Data'!$F$3,F12*COS(Q12/180*PI()),""))) -> -0.1811733316 | V12: 0 | W12: 0 | X12: -0.3622221849 | Y12: -0.09705714191 | Z12: -0.4829629131 | AA12: -0.1294095226 | AB12: -0.4829629131 | AC12: -0.1294095226 | AD12: -0.4829629131 | AE12: -0.1294095226 | AH12: 196.3636364 | AI12: 1 | AJ12: 1 | AK12: 1 | AL12: 1 | AM12: 1 | AN12: 1 | AO12: 1 | AP12: 1 | AQ12: 1 | AR12: 1 | AS12: 1
A13: Asset Management | B13: Accuracy | C13: =VLOOKUP($C$3,'RCA Results Table'!$A:$O,MATCH('Chart Data'!B13,'RCA Results Table'!$A$4:$O$4,0),FALSE)/100 -> 0.64 | D13: =VLOOKUP($D$3,'Region & Peer Group Results'!$A:$N,MATCH('Chart Data'!$B13,'Region & Peer Group Results'!$A$5:$N$5,0),FALSE)/100 -> 0.68 | E13: =VLOOKUP($E$3,'Region & Peer Group Results'!$A:$N,MATCH('Chart Data'!$B13,'Region & Peer Group Results'!$A$5:$N$5,0),FALSE)/100 -> 0.72 | F13: =VLOOKUP($F$3,'Region & Peer Group Results'!$A:$N,MATCH('Chart Data'!$B13,'Region & Peer Group Results'!$A$5:$N$5,0),FALSE)/100 -> 0.7 | G13: 0 | H13: 0.375 | I13: 0.5 | J13: 1 | K13: 0.6 | L13: 1 | M13: 0.08333333333 | N13: 270 | O13: =360*SUM($M$3:M13) -> 300 | P13: Condition | Q13: 285 | R13: -0.6181925288 | S13: 0.1656441889 | T13: =IF(Charts!$B$6='Chart Data'!$D$3,D13*SIN(Q13/180*PI()),IF(Charts!$B$6='Chart Data'!$E$3,E13*SIN(Q13/180*PI()),IF(Charts!$B$6='Chart Data'!$F$3,F13*SIN(Q13/180*PI()),""))) -> -0.6568295619 | U13: =IF(Charts!$B$6='Chart Data'!$D$3,D13*COS(Q13/180*PI()),IF(Charts!$B$6='Chart Data'!$E$3,E13*COS(Q13/180*PI()),IF(Charts!$B$6='Chart Data'!$F$3,F13*COS(Q13/180*PI()),""))) -> 0.1759969507 | V13: 0 | W13: 0 | X13: -0.3622221849 | Y13: 0.09705714191 | Z13: -0.4829629131 | AA13: 0.1294095226 | AB13: -0.9659258263 | AC13: 0.2588190451 | AD13: -0.5795554958 | AE13: 0.1552914271 | AH13: 220.9090909 | AI13: 1 | AJ13: 1 | AK13: 1 | AL13: 1 | AM13: 1 | AN13: 1 | AO13: 1 | AP13: 1 | AQ13: 1 | AR13: 1 | AS13: 1
A14: Asset Management | B14: Completeness | C14: =VLOOKUP($C$3,'RCA Results Table'!$A:$O,MATCH('Chart Data'!B14,'RCA Results Table'!$A$4:$O$4,0),FALSE)/100 -> 0.52 | D14: =VLOOKUP($D$3,'Region & Peer Group Results'!$A:$N,MATCH('Chart Data'!$B14,'Region & Peer Group Results'!$A$5:$N$5,0),FALSE)/100 -> 0.72 | E14: =VLOOKUP($E$3,'Region & Peer Group Results'!$A:$N,MATCH('Chart Data'!$B14,'Region & Peer Group Results'!$A$5:$N$5,0),FALSE)/100 -> 0.75 | F14: =VLOOKUP($F$3,'Region & Peer Group Results'!$A:$N,MATCH('Chart Data'!$B14,'Region & Peer Group Results'!$A$5:$N$5,0),FALSE)/100 -> 0.72 | G14: 0 | H14: 0.5 | I14: 0.5 | J14: 0.75 | K14: 0.75 | L14: 1 | M14: 0.08333333333 | N14: 300 | O14: =360*SUM($M$3:M14) -> 330 | P14: Maintenance Activtity | Q14: 315 | R14: -0.3676955262 | S14: 0.3676955262 | T14: =IF(Charts!$B$6='Chart Data'!$D$3,D14*SIN(Q14/180*PI()),IF(Charts!$B$6='Chart Data'!$E$3,E14*SIN(Q14/180*PI()),IF(Charts!$B$6='Chart Data'!$F$3,F14*SIN(Q14/180*PI()),""))) -> -0.5091168825 | U14: =IF(Charts!$B$6='Chart Data'!$D$3,D14*COS(Q14/180*PI()),IF(Charts!$B$6='Chart Data'!$E$3,E14*COS(Q14/180*PI()),IF(Charts!$B$6='Chart Data'!$F$3,F14*COS(Q14/180*PI()),""))) -> 0.5091168825 | V14: 0 | W14: 0 | X14: -0.3535533906 | Y14: 0.3535533906 | Z14: -0.3535533906 | AA14: 0.3535533906 | AB14: -0.5303300859 | AC14: 0.5303300859 | AD14: -0.5303300859 | AE14: 0.5303300859 | AH14: 245.4545455 | AI14: 1 | AJ14: 1 | AK14: 1 | AL14: 1 | AM14: 1 | AN14: 1 | AO14: 1 | AP14: 1 | AQ14: 1 | AR14: 1 | AS14: 1
A15: Asset Management | B15: Timeliness | C15: =VLOOKUP($C$3,'RCA Results Table'!$A:$O,MATCH('Chart Data'!B15,'RCA Results Table'!$A$4:$O$4,0),FALSE)/100 -> 0.63 | D15: =VLOOKUP($D$3,'Region & Peer Group Results'!$A:$N,MATCH('Chart Data'!$B15,'Region & Peer Group Results'!$A$5:$N$5,0),FALSE)/100 -> 0.57 | E15: =VLOOKUP($E$3,'Region & Peer Group Results'!$A:$N,MATCH('Chart Data'!$B15,'Region & Peer Group Results'!$A$5:$N$5,0),FALSE)/100 -> 0.64 | F15: =VLOOKUP($F$3,'Region & Peer Group Results'!$A:$N,MATCH('Chart Data'!$B15,'Region & Peer Group Results'!$A$5:$N$5,0),FALSE)/100 -> 0.59 | G15: 0.2272727273 | H15: 0.2727272727 | I15: 0.3636363636 | J15: 0.4545454545 | K15: 0.5 | L15: 1 | M15: 0.08333333333 | N15: 330 | O15: =360*SUM($M$3:M15) -> 360 | P15: Asset Inventory | Q15: 345 | R15: -0.1630559984 | S15: 0.6085332706 | T15: =IF(Charts!$B$6='Chart Data'!$D$3,D15*SIN(Q15/180*PI()),IF(Charts!$B$6='Chart Data'!$E$3,E15*SIN(Q15/180*PI()),IF(Charts!$B$6='Chart Data'!$F$3,F15*SIN(Q15/180*PI()),""))) -> -0.1475268557 | U15: =IF(Charts!$B$6='Chart Data'!$D$3,D15*COS(Q15/180*PI()),IF(Charts!$B$6='Chart Data'!$E$3,E15*COS(Q15/180*PI()),IF(Charts!$B$6='Chart Data'!$F$3,F15*COS(Q15/180*PI()),""))) -> 0.550577721 | V15: -0.05882251025 | W15: 0.2195285969 | X15: -0.0705870123 | Y15: 0.2634343163 | Z15: -0.0941160164 | AA15: 0.351245755 | AB15: -0.1176450205 | AC15: 0.4390571938 | AD15: -0.1294095226 | AE15: 0.4829629131 | AH15: 270 | AI15: 1 | AJ15: 1 | AK15: 1 | AL15: 1 | AM15: 1 | AN15: 1 | AO15: 1 | AP15: 1 | AQ15: 1 | AR15: 1 | AS15: 1
A16: Asset Management | B16: =B4 -> High | C16: =VLOOKUP($C$3,'RCA Results Table'!$A:$O,MATCH('Chart Data'!B16,'RCA Results Table'!$A$4:$O$4,0),FALSE)/100 -> 0.52 | D16: =VLOOKUP($D$3,'Region & Peer Group Results'!$A:$N,MATCH('Chart Data'!$B16,'Region & Peer Group Results'!$A$5:$N$5,0),FALSE)/100 -> 0.68 | E16: =VLOOKUP($E$3,'Region & Peer Group Results'!$A:$N,MATCH('Chart Data'!$B16,'Region & Peer Group Results'!$A$5:$N$5,0),FALSE)/100 -> 0.68 | F16: =VLOOKUP($F$3,'Region & Peer Group Results'!$A:$N,MATCH('Chart Data'!$B16,'Region & Peer Group Results'!$A$5:$N$5,0),FALSE)/100 -> 0.68 | G16: =G4 -> 0.5133333333 | H16: 0.6 | I16: 0.6666666667 | J16: 0.7333333333 | K16: 0.8666666667 | L16: 1 | M16: 0.08333333333 | N16: 0 | O16: 30 | P16: Accuracy | Q16: 15 | R16: 0.1345859035 | S16: 0.5022814297 | T16: 0.1759969507 | U16: 0.6568295619 | V16: 0.1328604432 | W16: 0.4958419242 | X16: 0.1552914271 | Y16: 0.5795554958 | Z16: 0.1725460301 | AA16: 0.6439505509 | AB16: 0.1898006331 | AC16: 0.7083456059 | AD16: 0.2243098391 | AE16: 0.8371357161
